bitfinex/quotes_SOLUSD_20250917
["timestamp","ask_amount","ask_price","bid_price","bid_amount"]
[1758135616488,0.03,234.01,233.88,14.96493927]
[1758135616692,0.03,234.01,233.95,5.75290853]
[1758135616893,0.03,234.01,234.0,5.75290853]
[1758135617099,0.03,234.01,233.89,0.42755141]
[1758135617573,0.03,234.01,234.0,4.27350427]
[1758135617779,0.03,234.01,234.0,23.04190971]
[1758135618079,22.86,234.21,234.07,5.75290853]
[1758135618282,5.75290853,234.16,234.0,14.95726495]
[1758135618484,20.17760562,234.22,234.0,14.95726495]
[1758135618691,20.17760562,234.22,234.1,5.75290853]
[1758135619022,5.75290853,234.2,234.12,5.75290853]
[1758135619203,40.87382839,234.22,234.0,27.75853083]
[1758135619386,5.75290853,234.11,234.03,5.75290853]
[1758135619578,40.87382839,234.22,234.05,5.75290853]
[1758135619893,20.17760562,234.22,234.06,14.95343074]
[1758135620075,20.17760562,234.22,234.11,5.75290853]
[1758135620407,3.79210739,234.33,234.13,5.75290853]
[1758135620609,20.0,234.36,234.19,5.75290853]
[1758135620913,52.95365191,234.37,234.21,5.75290853]
[1758135621092,5.75290853,234.31,234.13,3.93545298]
[1758135621290,5.75290853,234.31,234.21,5.75290853]
[1758135621492,74.28744036,234.37,234.21,5.75290853]
[1758135621709,4.2660296,234.41,234.22,4.26949022]
[1758135621912,38.02,234.38,234.23,5.75290853]
[1758135622083,5.75290853,234.38,234.29,5.75290853]
[1758135622285,4.2660296,234.41,234.31,5.75290853]
[1758135622499,4.2660296,234.41,234.22,20.6961243]
[1758135622694,4.2660296,234.41,234.3,5.75290853]
[1758135622904,4.26555649,234.44,234.22,20.6961243]
[1758135623095,23.62,234.59,234.23,0.42693079]
[1758135623300,5.75290853,234.44,234.22,40.6961243]
[1758135623495,5.75290853,234.5,234.33,5.75290853]
[1758135623691,5.75290853,234.5,234.27,5.75290853]
[1758135623692,4.2660296,234.41,234.27,5.75290853]
[1758135623891,5.75290853,234.5,234.31,5.75290853]
[1758135624104,45.74638442,234.49,234.33,5.75290853]
[1758135624393,14.92638442,234.49,234.35,5.75290853]
[1758135624586,6.14593397,234.57,234.26,20.0]
[1758135624587,2.22986147,234.57,234.26,20.0]
[1758135624783,20.0,234.61,234.22,63.39102652]
[1758135624784,5.75290853,234.47,234.22,62.04357541]
[1758135625021,5.75290853,234.51,234.41,5.75290853]
[1758135625320,5.75290853,234.43,234.22,5.75290853]
[1758135625532,32.06,234.43,234.2,4.26980844]
[1758135625691,36.25970478,234.42,234.24,5.75290853]
[1758135626031,5.75290853,234.41,234.3,5.75290853]
[1758135626317,5.75290853,234.34,234.24,5.75290853]
[1758135626538,5.75290853,234.27,234.17,5.75290853]
[1758135626721,20.0,234.37,234.17,5.75290853]
[1758135626902,5.75290853,234.29,234.19,5.75290853]
[1758135627104,5.75290853,234.31,234.21,5.75290853]
[1758135627302,14.93046667,234.42,234.14,14.94832151]
[1758135627501,20.0,234.46,234.14,14.94832151]
[1758135627502,37.96,234.41,234.15,0.42707666]
[1758135627705,4.2662116,234.4,234.31,5.75290853]
[1758135628011,4.2662116,234.4,234.23,14.9425778]
[1758135628212,5.75290853,234.4,234.23,4.26930794]
[1758135628399,43.71290853,234.42,234.32,5.75290853]
[1758135628600,5.75290853,234.42,234.33,5.75290853]
[1758135628908,5.75290853,234.4,234.23,14.9425778]
[1758135629089,5.75290853,234.36,234.19,10.67470743]
[1758135629411,5.75290853,234.31,234.16,14.94691341]
[1758135629615,5.75290853,234.29,234.19,5.75290853]
[1758135629921,20.0,234.41,234.22,5.75290853]
[1758135629922,4.26839679,234.28,234.22,5.75290853]
[1758135630308,14.93938876,234.28,234.17,4.27026536]
[1758135630635,5.75290853,234.26,234.14,4.27090071]
[1758135630810,5.75290853,234.22,234.11,4.27133836]
[1758135631004,14.93938876,234.28,234.2,5.75290853]
[1758135631227,10.02093025,234.31,234.15,0.5]
[1758135633510,0.03,234.28,234.19,5.75290853]
[1758135633735,5.75290853,234.27,234.18,5.75290853]
[1758135634053,4.29839679,234.28,234.19,8.45681371]
[1758135634209,4.29839679,234.28,234.25,8.45681371]
[1758135634410,0.03,234.28,234.27,8.45681371]
[1758135635024,0.03,234.28,234.1,0.42716787]
[1758135635231,4.29839679,234.28,234.22,8.45681371]
[1758135635431,4.29839679,234.28,234.09,14.95150008]
[1758135635738,0.03,234.28,234.27,8.45681371]
[1758135636609,0.03,234.28,234.24,8.45681371]
[1758135637011,0.03,234.28,234.26,8.45681371]
[1758135637250,0.03,234.28,234.24,8.45681371]
[1758135637416,0.03,234.28,234.27,8.45681371]
[1758135637951,0.03,234.28,234.08,31.97681371]
[1758135637952,0.03,234.28,234.1,4.27167876]
[1758135638149,0.03,234.28,234.11,0.42714963]
[1758135638533,0.03,234.28,234.26,8.45681371]
[1758135639349,0.03,234.28,234.27,8.45681371]
[1758135639548,0.03,234.28,234.11,0.42714963]
[1758135639754,0.03,234.28,234.27,12.7253927]
[1758135641437,0.03,234.31,234.27,23.82369806]
[1758135641648,4.2632783,234.57,234.3,8.45681371]
[1758135641857,10.65734504,234.58,234.42,8.45681371]
[1758135642046,24.02,234.57,234.44,8.45681371]
[1758135642237,10.65734504,234.58,234.44,8.45681371]
[1758135642439,10.65734504,234.58,234.31,14.93747598]
[1758135642440,4.26275629,234.59,234.46,8.45681371]
[1758135642649,37.88,234.58,234.46,8.45681371]
[1758135642963,30.76,234.63,234.48,8.45681371]
[1758135643257,37.88,234.67,234.4,38.43560706]
[1758135643430,8.45681371,234.6,234.4,38.43560706]
[1758135643632,37.88,234.67,234.49,8.45681371]
[1758135643830,4.26275629,234.59,234.49,8.45681371]
[1758135644047,14.91964703,234.59,234.4,38.43560706]
[1758135644244,8.45681371,234.57,234.46,8.45681371]
[1758135644457,8.45681371,234.56,234.46,8.45681371]
[1758135644756,8.45681371,234.55,234.41,4.2660296]
[1758135644939,8.45681371,234.55,234.44,8.45681371]
[1758135645130,8.45681371,234.53,234.34,10.66798785]
[1758135645330,8.45681371,234.52,234.34,3.94179929]
[1758135645663,8.45681371,234.45,234.28,4.26839679]
[1758135645836,8.45681371,234.46,234.37,8.45681371]
[1758135646032,36.24115288,234.54,234.37,8.45681371]
[1758135646251,8.45681371,234.49,234.39,8.45681371]
[1758135646643,37.86,234.53,234.28,4.26839679]
[1758135646964,37.86,234.53,234.33,8.45681371]
[1758135646965,8.45681371,234.43,234.33,8.45681371]
[1758135647127,8.45681371,234.41,234.31,8.45681371]
[1758135647326,8.45681371,234.41,234.3,8.45681371]
[1758135647548,8.45681371,234.35,234.25,3.73885215]
[1758135647764,14.9355637,234.34,234.25,3.73885215]
[1758135648153,14.9355637,234.34,234.25,12.19566586]
[1758135648330,4.26723326,234.35,234.28,8.45681371]
[1758135648530,8.45681371,234.34,234.1,14.95087568]
[1758135648765,4.26723326,234.35,234.26,8.45681371]
[1758135648942,4.26723326,234.35,234.3,8.45681371]
[1758135649269,8.45681371,234.44,234.34,8.45681371]
[1758135649431,37.84,234.42,234.34,8.45681371]
[1758135649629,37.84,234.44,234.36,8.45681371]
[1758135649840,14.93020141,234.43,234.36,8.45681371]
[1758135650355,32.49224889,234.55,234.38,8.45681371]
[1758135650538,32.49224889,234.55,234.33,12.79220534]
[1758135650539,37.84,234.47,234.36,8.45681371]
[1758135650852,37.84,234.46,234.33,17.05966018]
[1758135651155,37.84,234.48,234.33,17.05966018]
[1758135651361,8.45681371,234.51,234.41,8.45681371]
[1758135651545,46.29681371,234.51,234.41,8.45681371]
[1758135651951,8.45681371,234.47,234.33,12.79220534]
[1758135652135,8.45681371,234.45,234.34,8.45681371]
[1758135652460,8.45681371,234.36,234.11,14.95023706]
[1758135652638,37.84,234.37,234.26,8.45681371]
[1758135652839,8.45681371,234.36,234.26,8.45681371]
[1758135653249,37.82,234.37,234.11,36.30771858]
[1758135653455,37.82,234.37,234.11,14.95023706]
[1758135653665,37.82,234.37,234.31,0.06]
[1758135653860,14.93492638,234.35,234.31,0.06]
[1758135654161,42.08712182,234.35,234.31,0.06]
[1758135654345,8.45681371,234.39,234.31,0.06]
[1758135654536,46.27681371,234.39,234.31,0.06]
[1758135655340,8.45681371,234.37,234.31,0.06]
[1758135655663,8.45681371,234.35,234.31,0.06]
[1758135655868,8.45681371,234.33,234.31,0.06]
[1758135656048,4.26766814,234.32,234.31,0.06]
[1758135656741,42.08766814,234.32,234.31,0.06]
[1758135656966,12.88,234.43,234.31,0.06]
[1758135657264,8.45681371,234.36,234.31,0.06]
[1758135657439,37.82,234.35,234.31,0.06]
[1758135657635,46.27681371,234.35,234.31,0.06]
[1758135657834,14.93046667,234.42,234.32,8.45681371]
[1758135658069,37.82,234.41,234.34,8.45681371]
[1758135658365,37.82,234.41,234.31,0.06]
[1758135658366,8.45681371,234.42,234.31,0.06]
[1758135658544,37.82,234.41,234.31,0.06]
[1758135658741,12.88,234.47,234.34,8.45681371]
[1758135658969,37.8,234.46,234.35,8.45681371]
[1758135659175,12.88,234.47,234.31,0.06]
[1758135659349,50.68,234.45,234.31,0.06]
[1758135659546,8.45681371,234.4,234.31,0.06]
[1758135660048,50.68,234.45,234.31,0.06]
[1758135660049,4.26639361,234.39,234.31,0.06]
[1758135660245,37.8,234.4,234.31,4.32781893]
[1758135660441,12.72209108,234.46,234.31,4.32781893]
[1758135660649,37.8,234.45,234.37,8.45681371]
[1758135660843,4.26527737,234.46,234.41,8.45681371]
[1758135661048,52.72807699,234.46,234.4,8.45681371]
[1758135661262,8.45681371,234.43,234.31,0.06]
[1758135661462,8.45681371,234.43,234.32,8.45681371]
[1758135661672,8.45681371,234.41,234.31,0.06]
[1758135661867,8.45681371,234.42,234.32,8.45681371]
[1758135662061,20.0,234.54,234.31,0.06]
[1758135662062,37.8,234.43,234.34,8.45681371]
[1758135662262,8.45681371,234.42,234.31,0.06]
[1758135662471,8.45681371,234.36,234.31,0.06]
[1758135662770,37.8,234.41,234.31,0.06]
[1758135662771,8.45681371,234.34,234.31,0.06]
[1758135662977,8.45681371,234.37,234.31,0.06]
[1758135663175,8.45681371,234.32,234.07,0.2]
[1758135663359,21.32035555,234.52,234.07,0.2]
[1758135663360,37.8,234.31,234.07,0.2]
[1758135663558,8.45681371,234.17,234.08,8.45681371]
[1758135663873,8.45681371,234.13,234.07,0.2]
[1758135664176,10.67418129,234.21,234.07,8.65681371]
[1758135664382,8.45681371,234.15,234.07,0.2]
[1758135664561,37.78,234.16,234.1,8.45681371]
[1758135664755,46.23681371,234.15,234.07,0.2]
[1758135665076,14.9438538,234.21,234.11,8.45681371]
[1758135665285,37.78,234.18,234.11,8.45681371]
[1758135665452,20.0,234.35,234.15,8.45681371]
[1758135665774,8.45681371,234.3,234.19,8.45681371]
[1758135665979,37.78,234.3,234.18,4.27020439]
[1758135666148,37.78,234.3,234.22,8.45681371]
[1758135666354,37.78,234.3,234.25,8.45681371]
[1758135666569,37.78,234.3,234.23,8.45681371]
[1758135666761,37.78,234.3,234.21,8.45681371]
[1758135666965,37.78,234.3,234.09,14.95151436]
[1758135666966,8.45681371,234.28,234.09,4.27186124]
[1758135667149,8.45681371,234.26,234.09,4.27186124]
[1758135667348,8.45681371,234.28,234.18,8.45681371]
[1758135667770,37.78,234.27,234.18,8.45681371]
[1758135667976,42.048638,234.27,234.18,8.45681371]
[1758135668282,14.9324658,234.39,234.13,0.42711314]
[1758135668470,37.78,234.34,234.27,8.45681371]
[1758135668867,37.78,234.34,234.29,8.45681371]
[1758135669089,8.45681371,234.38,234.27,8.45681371]
[1758135669090,37.78,234.35,234.27,8.45681371]
[1758135669674,37.78,234.35,234.29,8.45681371]
[1758135670069,37.78,234.35,234.31,8.45681371]
[1758135670270,8.45681371,234.32,234.13,4.27113142]
[1758135670567,8.45681371,234.23,234.13,12.72794513]
[1758135670767,8.45681371,234.23,234.11,8.45681371]
[1758135670978,8.45681371,234.23,234.08,10.67976527]
[1758135670979,8.45681371,234.22,234.09,14.95151436]
[1758135671180,8.45681371,234.2,233.97,3.82482289]
[1758135671363,37.78,234.26,234.08,4.27204374]
[1758135671566,37.78,234.26,234.12,8.45681371]
[1758135671875,36.27208328,234.34,234.08,14.9521531]
[1758135671876,8.45681371,234.29,234.19,8.45681371]
[1758135672077,37.78,234.28,234.19,8.45681371]
[1758135672272,8.45681371,234.22,234.1,8.45681371]
[1758135672468,37.78,234.21,234.0,10.0]
[1758135672693,32.2,234.2,234.08,0.06]
[1758135672864,37.78,234.26,234.14,8.45681371]
[1758135673188,8.45681371,234.25,234.08,10.74010936]
[1758135673487,37.78,234.26,234.13,8.45681371]
[1758135673488,8.45681371,234.23,234.13,8.45681371]
[1758135673702,37.78,234.26,234.16,8.45681371]
[1758135673904,37.78,234.26,234.15,8.45681371]
[1758135674198,37.78,234.26,234.08,15.0121531]
[1758135674199,8.45681371,234.23,234.08,0.06]
[1758135674381,8.45681371,234.23,234.14,8.45681371]
[1758135674695,8.45681371,234.23,234.09,14.95138587]
[1758135674696,37.78,234.27,234.18,8.45681371]
[1758135674997,37.78,234.31,234.24,8.45681371]
[1758135675167,37.78,234.33,234.24,8.45681371]
[1758135675364,37.78,234.33,234.09,14.95138587]
[1758135675564,37.78,234.33,234.25,8.45681371]
[1758135675784,46.23681371,234.33,234.09,14.95138587]
[1758135675995,37.78,234.33,234.23,8.45681371]
[1758135676207,4.26766814,234.32,234.23,8.45681371]
[1758135676582,4.26766814,234.32,234.08,0.06]
[1758135676583,8.45681371,234.25,234.08,0.06]
[1758135676774,8.45681371,234.23,234.1,4.27167876]
[1758135676980,8.45681371,234.19,234.08,4.33193967]
[1758135677190,8.45681371,234.19,234.08,0.06]
[1758135677478,8.45681371,234.13,234.08,0.06]
[1758135677970,8.45681371,234.11,234.08,0.06]
[1758135678169,4.27126271,234.13,234.08,0.06]
[1758135678370,12.88,234.23,234.08,0.06]
[1758135678582,8.45681371,234.17,234.08,0.06]
[1758135678782,4.26930794,234.23,234.08,4.33200384]
[1758135679116,8.45681371,234.18,234.08,0.06]
[1758135679319,8.45681371,234.12,234.08,0.06]
[1758135679803,8.45681371,234.1,234.08,0.06]
[1758135679984,63.78,234.11,234.08,0.06]
[1758135680186,37.78,234.16,234.09,8.45681371]
[1758135680497,8.45681371,234.4,234.08,0.06]
[1758135680498,26.0,234.18,234.08,0.06]
[1758135680703,8.45681371,234.1,234.0,9.53]
[1758135680902,8.45681371,234.01,234.0,9.53]
[1758135681085,48.43681371,234.01,234.0,9.53]
[1758135681269,26.0,233.98,233.77,13.1486544]
[1758135681473,34.45681371,233.98,233.79,10.69328251]
[1758135681688,26.0,233.98,233.77,0.06]
[1758135681869,34.45681371,233.98,233.77,0.06]
[1758135682073,30.27386956,233.98,233.83,8.45681371]
[1758135682290,38.73068327,233.98,233.79,4.27721772]
[1758135682496,38.73068327,233.98,233.77,0.06]
[1758135682681,26.0,233.98,233.77,0.06]
[1758135682897,4.27399474,233.98,233.85,4.27607176]
[1758135683085,4.27399474,233.98,233.88,8.45681371]
[1758135683086,26.0,233.96,233.88,8.45681371]
[1758135683280,26.0,233.96,233.77,0.06]
[1758135683484,34.45681371,233.95,233.81,8.45681371]
[1758135683681,34.45681371,233.95,233.79,8.45681371]
[1758135683893,34.45681371,233.89,233.79,8.45681371]
[1758135684107,12.73269347,233.87,233.77,0.06]
[1758135684314,8.45681371,233.94,233.83,8.45681371]
[1758135684490,13.59559401,233.89,233.84,8.45681371]
[1758135684687,13.59559401,233.93,233.88,8.45681371]
[1758135684898,13.59559401,233.93,233.84,8.45681371]
[1758135685101,13.59559401,233.93,233.82,8.45681371]
[1758135685302,13.59559401,233.94,233.88,8.45681371]
[1758135685503,26.0,233.95,233.88,8.45681371]
[1758135685700,13.59559401,233.94,233.93,8.45681371]
[1758135685918,8.45681371,234.24,233.96,26.0]
[1758135686215,8.45681371,234.08,233.88,4.27569693]
[1758135686384,24.9,234.07,233.88,4.27569693]
[1758135686586,13.59559401,234.01,233.89,26.0]
[1758135686785,13.59559401,234.01,233.88,26.0]
[1758135686998,26.0,234.03,233.94,8.45681371]
[1758135687305,13.59559401,234.02,233.94,8.45681371]
[1758135687607,13.59559401,234.02,233.92,8.45681371]
[1758135687782,13.59559401,234.02,233.89,26.0]
[1758135687981,13.59559401,234.02,233.92,8.91134187]
[1758135688181,17.86883242,234.02,233.81,26.0]
[1758135688383,17.86883242,234.02,233.93,8.91134187]
[1758135688583,26.78017429,234.02,233.91,8.91134187]
[1758135688886,17.86879345,234.02,233.93,8.91134187]
[1758135689086,17.86879345,234.02,233.92,8.91134187]
[1758135689407,17.86879345,234.02,233.91,8.91134187]
[1758135690009,13.59559401,234.02,233.93,8.91134187]
[1758135690209,26.0,234.03,233.95,8.91134187]
[1758135690518,13.59559401,234.02,234.01,8.91134187]
[1758135690714,8.91134187,234.14,234.01,8.91134187]
[1758135691017,28.88,234.13,234.01,8.91134187]
[1758135691220,34.91134187,234.12,234.01,8.91134187]
[1758135691388,8.91134187,234.1,233.92,26.0]
[1758135691717,13.59559401,234.11,234.0,8.91134187]
[1758135691916,13.59559401,234.08,234.0,8.91134187]
[1758135692219,13.59559401,234.1,234.06,8.91134187]
[1758135692610,39.8,234.11,234.08,8.91134187]
[1758135692917,39.76,234.2,234.1,8.91134187]
[1758135693220,8.91134187,234.27,234.16,8.91134187]
[1758135693420,39.74,234.26,234.2,8.91134187]
[1758135693721,16.97260362,234.31,234.2,8.91134187]
[1758135693897,39.72,234.31,234.26,8.91134187]
[1758135694099,13.59559401,234.3,234.23,8.91134187]
[1758135694425,0.03,234.44,234.29,8.91134187]
[1758135694599,8.91134187,234.4,234.29,8.91134187]
[1758135695003,4.26589418,234.42,234.33,8.91134187]
[1758135695298,13.59559401,234.37,234.24,26.0]
[1758135695505,39.68,234.41,234.33,8.91134187]
[1758135695814,39.68,234.41,234.32,8.68278864]
[1758135696025,30.78,234.52,234.36,8.68278864]
[1758135696194,39.69,234.44,234.38,8.68278864]
[1758135696397,13.59559401,234.43,234.33,4.2673599]
[1758135696592,13.59559401,234.43,234.36,8.68278864]
[1758135696820,0.03,234.44,234.42,8.68278864]
[1758135696997,8.68278864,234.58,234.42,8.68278864]
[1758135697188,26.0,234.54,234.36,26.0]
[1758135697724,13.59559401,234.53,234.45,8.68278864]
[1758135697939,35.72278864,234.57,234.45,8.68278864]
[1758135698100,4.2633015,234.56,234.47,8.68278864]
[1758135698307,13.59559401,234.53,234.47,8.68278864]
[1758135698719,13.59559401,234.54,234.46,8.68278864]
[1758135698923,13.59559401,234.54,234.38,30.26649912]
[1758135699125,13.59559401,234.54,234.32,26.0]
[1758135699326,22.27838265,234.54,234.43,8.68278864]
[1758135699642,13.59559401,234.51,234.32,10.66891377]
[1758135699814,13.59559401,234.51,234.41,8.68278864]
[1758135700014,3.73526001,234.7,234.47,8.68278864]
[1758135700332,13.59559401,234.54,234.47,8.68278864]
[1758135700502,39.5,234.53,234.47,8.68278864]
[1758135700709,13.59559401,234.52,234.45,8.68278864]
[1758135700926,13.59559401,234.52,234.43,8.68278864]
[1758135701434,13.59559401,234.52,234.37,4.26666377]
[1758135701599,13.59559401,234.52,234.37,14.93355799]
[1758135701798,13.59559401,234.55,234.51,8.68278864]
[1758135702028,13.59559401,234.55,234.42,3.67730232]
[1758135702220,2.22899196,234.71,234.48,26.0]
[1758135702401,19.3360464,234.67,234.47,26.0]
[1758135702602,13.59559401,234.64,234.47,26.0]
[1758135702828,26.0,234.66,234.52,8.68278864]
[1758135703018,8.68278864,234.63,234.53,8.68278864]
[1758135703206,39.46,234.62,234.53,8.68278864]
[1758135703536,39.46,234.62,234.47,26.0]
[1758135703537,13.59559401,234.61,234.52,8.68278864]
[1758135703824,13.59559401,234.61,234.56,8.68278864]
[1758135704026,13.59559401,234.61,234.58,8.68278864]
[1758135704638,39.46,234.62,234.58,8.68278864]
[1758135704802,2.22865888,234.73,234.6,8.68278864]
[1758135705005,39.38,234.74,234.55,26.0]
[1758135705512,39.38,234.74,234.52,24.03329178]
[1758135705513,13.59559401,234.73,234.56,26.0]
[1758135705906,4.25894378,234.8,234.6,26.0]
[1758135706212,13.59559401,234.77,234.62,26.0]
[1758135706904,13.59559401,234.77,234.61,4.2623929]
[1758135707104,13.59559401,234.78,234.62,26.0]
[1758135707411,10.64702513,234.81,234.62,26.0]
[1758135707412,4.25888098,234.81,234.62,26.0]
[1758135707596,4.25888098,234.81,234.74,8.68278864]
[1758135707802,4.25888098,234.81,234.64,26.0]
[1758135708023,4.25888098,234.81,234.74,8.68278864]
[1758135708224,13.59559401,234.78,234.73,8.68278864]
[1758135708537,13.59559401,234.82,234.77,8.68278864]
[1758135708745,13.59559401,234.83,234.79,8.68278864]
[1758135709027,39.22,234.85,234.82,8.68278864]
[1758135709236,39.22,234.85,234.7,26.0]
[1758135709443,39.22,234.85,234.75,26.0]
[1758135709735,13.59559401,234.88,234.83,8.68278864]
[1758135709941,0.03,234.79,234.75,26.0]
[1758135710105,0.03,234.79,234.71,26.0]
[1758135710438,0.03,234.79,234.78,8.68278864]
[1758135710820,0.03,234.79,234.72,4.26039536]
[1758135710821,0.03,234.79,234.72,30.26039536]
[1758135711010,0.03,234.79,234.78,8.68278864]
[1758135711212,13.59559401,234.89,234.78,8.68278864]
[1758135711535,13.59559401,234.87,234.82,8.68278864]
[1758135711735,13.59559401,234.87,234.72,26.0]
[1758135712107,13.59559401,234.85,234.79,5.69081964]
[1758135712308,13.59559401,234.85,234.81,5.69081964]
[1758135712608,4.25731193,234.89,234.76,26.0]
[1758135712825,39.4,234.84,234.76,26.0]
[1758135713032,13.59559401,234.85,234.76,26.0]
[1758135713203,13.59559401,234.85,234.72,30.26025819]
[1758135713635,13.59559401,234.84,234.72,40.9112466]
[1758135713837,13.59559401,234.84,234.72,30.26025819]
[1758135714020,13.59559401,234.84,234.69,3.773277]
[1758135714212,13.59559401,234.82,234.69,4.26093164]
[1758135714408,39.42,234.81,234.78,5.69081964]
[1758135714635,14.90061889,234.89,234.78,5.69081964]
[1758135714802,13.59559401,234.88,234.8,5.69081964]
[1758135715003,13.59559401,234.86,234.83,5.69081964]
[1758135715426,39.42,234.87,234.83,5.69081964]
[1758135715638,39.38,234.88,234.85,5.69081964]
[1758135715919,39.38,234.88,234.77,26.0]
[1758135716125,39.38,234.88,234.83,5.69081964]
[1758135716309,39.38,234.88,234.74,30.26003237]
[1758135716654,43.63759794,234.88,234.82,5.69081964]
[1758135716808,39.38,234.88,234.82,5.69081964]
[1758135717008,39.38,234.88,234.74,40.91011331]
[1758135717337,39.3,234.87,234.82,5.69081964]
[1758135717540,13.59559401,234.86,234.79,5.69081964]
[1758135717704,39.28,234.85,234.79,5.69081964]
[1758135718112,39.59559401,234.9,234.81,5.69081964]
[1758135718447,13.59559401,234.86,234.82,5.69081964]
[1758135718752,13.59559401,234.88,234.76,4.25962491]
[1758135718934,13.59559401,234.91,234.84,5.69081964]
[1758135719119,39.36,234.87,234.84,5.69081964]
[1758135719314,13.59559401,234.86,234.71,26.0]
[1758135719620,13.59559401,234.86,234.75,26.0]
[1758135719822,13.59559401,234.86,234.67,3.73253432]
[1758135719823,5.69081964,234.84,234.68,4.26097852]
[1758135720016,5.69081964,234.84,234.74,5.69081964]
[1758135720208,13.59559401,234.82,234.77,5.69081964]
[1758135720414,39.34,234.82,234.78,5.69081964]
[1758135720617,39.34,234.82,234.79,5.69081964]
[1758135720834,30.74,234.93,234.81,5.69081964]
[1758135721034,13.59559401,234.92,234.78,5.69081964]
[1758135721240,13.59559401,234.9,234.85,5.69081964]
[1758135721454,30.74,234.93,234.88,5.69081964]
[1758135721614,52.89559401,234.93,234.81,26.0]
[1758135721815,13.59559401,234.92,234.89,5.69081964]
[1758135722055,39.3,234.91,234.89,5.69081964]
[1758135722226,39.3,234.91,234.81,26.0]
[1758135722420,5.69081964,235.06,234.81,26.0]
[1758135722421,14.89361701,235.0,234.9,5.69081964]
[1758135722626,13.59559401,234.98,234.88,5.69081964]
[1758135722827,13.59559401,234.98,234.92,5.69081964]
[1758135723152,4.25531914,235.0,234.85,26.0]
[1758135723320,13.59559401,234.96,234.89,5.69081964]
[1758135723624,13.59559401,234.9,234.79,5.69081964]
[1758135723826,19.28641365,234.91,234.73,26.0]
[1758135724041,13.59559401,234.81,234.7,5.69081964]
[1758135724222,26.0,234.86,234.68,5.69081964]
[1758135724223,13.59559401,234.79,234.68,5.69081964]
[1758135724424,26.0,234.87,234.72,5.69081964]
[1758135724646,13.59559401,234.8,234.74,5.69081964]
[1758135724822,19.28641365,234.78,234.6,3.79035409]
[1758135725028,19.28641365,234.78,234.58,0.5]
[1758135725029,5.69081964,234.73,234.52,4.26402865]
[1758135725260,39.59559401,234.74,234.68,5.69081964]
[1758135725458,13.59559401,234.75,234.68,5.69081964]
[1758135725625,44.91081964,234.73,234.52,18.72873915]
[1758135725830,5.69081964,234.71,234.6,5.69081964]
[1758135726047,13.59559401,234.7,234.59,5.69081964]
[1758135726221,39.26,234.69,234.52,8.49507038]
[1758135726422,39.26,234.7,234.68,5.69081964]
[1758135726822,43.52083091,234.7,234.54,14.92282765]
[1758135727053,39.26,234.7,234.54,14.92282765]
[1758135727353,13.59559401,234.65,234.57,5.69081964]
[1758135727550,4.26079768,234.7,234.61,5.69081964]
[1758135727722,52.85559401,234.69,234.67,0.06]
[1758135728529,17.85671553,234.68,234.67,0.06]
[1758135728969,12.84823587,234.78,234.67,0.06]
[1758135729139,13.59559401,234.72,234.67,0.06]
[1758135729456,13.59559401,234.76,234.67,0.06]
[1758135729636,13.59559401,234.76,234.68,5.69081964]
[1758135729848,13.59559401,234.76,234.67,0.06]
[1758135729849,13.59559401,234.72,234.67,0.06]
[1758135730038,19.28641365,234.7,234.67,0.06]
[1758135730448,13.59559401,234.7,234.67,0.06]
[1758135730621,26.0,234.73,234.67,0.06]
[1758135730827,13.59559401,234.71,234.67,0.06]
[1758135731062,13.59559401,234.73,234.67,0.06]
[1758135731245,39.3,234.72,234.7,5.69081964]
[1758135731662,13.62559401,234.82,234.7,5.69081964]
[1758135731851,13.59559401,234.8,234.72,5.69081964]
[1758135732068,39.26,234.79,234.67,0.06]
[1758135732237,0.03,234.82,234.74,5.69081964]
[1758135732437,13.59559401,234.8,234.74,5.69081964]
[1758135732645,13.59559401,234.8,234.76,5.69081964]
[1758135732843,0.03,234.82,234.76,5.69081964]
[1758135733054,0.03,234.82,234.8,5.69081964]
[1758135733251,0.03,234.82,234.71,10.65105167]
[1758135733252,13.59559401,234.81,234.75,5.69081964]
[1758135733459,13.59559401,234.81,234.74,5.69081964]
[1758135733657,13.59559401,234.81,234.67,0.06]
[1758135733828,39.59559401,234.81,234.67,0.06]
[1758135734032,13.59559401,234.76,234.67,5.75081964]